[Event "*** Titled Tuesday Blitz"]
[Site "Chess.com"]
[Date "2018.01.02"]
[Round "8"]
[White "Dr-Bassem"]
[Black "ftorodent"]
[Result "1-0"]
[WhiteElo "2646"]
[BlackElo "2514"]
[TimeControl "180+2"]
[EndTime "14:47:29 PST"]
[Termination "Dr-Bassem won by resignation"]

1. e4 {[%clk 0:03:01.9]} 1... e6 {[%clk 0:03:00.6]} 2. d3 {[%clk 0:03:02.8]}
2... d5 {[%clk 0:03:01.5]} 3. Nd2 {[%clk 0:03:04.4]} 3... c5 {[%clk 0:03:02.4]}
4. Ngf3 {[%clk 0:03:05.9]} 4... Nc6 {[%clk 0:03:03.4]} 5. g3 {[%clk 0:03:07.6]}
5... g6 {[%clk 0:03:04.6]} 6. Bg2 {[%clk 0:03:09.2]} 6... Bg7 {[%clk 0:03:06]}
7. O-O {[%clk 0:03:10.9]} 7... Nf6 {[%clk 0:03:07.4]} 8. Re1 {[%clk 0:03:12.5]}
8... O-O {[%clk 0:03:08.1]} 9. c3 {[%clk 0:03:14.1]} 9... a5 {[%clk 0:03:08.8]}
10. a4 {[%clk 0:01:56.9]} 10... b6 {[%clk 0:03:06.9]} 11. Nb1 {[%clk 0:01:56.5]}
11... dxe4 {[%clk 0:02:33.7]} 12. dxe4 {[%clk 0:01:58.3]} 12... Qxd1 {[%clk
0:02:34.2]} 13. Rxd1 {[%clk 0:02:00.1]} 13... Ba6 {[%clk 0:02:31.1]} 14. Bf4
{[%clk 0:01:44.1]} 14... Rfd8 {[%clk 0:02:27.4]} 15. Re1 {[%clk 0:01:40.9]}
15... Bd3 {[%clk 0:02:14.2]} 16. Nbd2 {[%clk 0:01:35.3]} 16... h6 {[%clk
0:02:14.1]} 17. Bf1 {[%clk 0:01:30.2]} 17... g5 {[%clk 0:02:13.1]} 18. Bxd3
{[%clk 0:01:15.9]} 18... Rxd3 {[%clk 0:02:12.2]} 19. Be3 {[%clk 0:01:14.4]}
19... Ng4 {[%clk 0:02:09.3]} 20. Nc4 {[%clk 0:01:12.4]} 20... Rb8 {[%clk
0:02:07.8]} 21. Rad1 {[%clk 0:01:08.7]} 21... Rxd1 {[%clk 0:01:57.7]} 22. Rxd1
{[%clk 0:01:10.6]} 22... Nge5 {[%clk 0:01:55.5]} 23. Nfxe5 {[%clk 0:01:06.2]}
23... Nxe5 {[%clk 0:01:56.4]} 24. Na3 {[%clk 0:01:04.3]} 24... Kf8 {[%clk
0:01:33.7]} 25. h3 {[%clk 0:01:04.2]} 25... Ke7 {[%clk 0:01:32.8]} 26. f4 {[%clk
0:01:03.4]} 26... gxf4 {[%clk 0:01:33.2]} 27. gxf4 {[%clk 0:01:03.5]} 27... Nd7
{[%clk 0:01:32.1]} 28. Kf2 {[%clk 0:01:01.9]} 28... h5 {[%clk 0:01:31.6]} 29.
Kf3 {[%clk 0:01:01.5]} 29... Bh6 {[%clk 0:01:21.8]} 30. Nc4 {[%clk 0:00:58.2]}
30... e5 {[%clk 0:00:53.7]} 31. f5 {[%clk 0:00:33]} 31... Bxe3 {[%clk
0:00:49.7]} 32. Nxe3 {[%clk 0:00:34.6]} 32... Nf6 {[%clk 0:00:50.6]} 33. Nc4
{[%clk 0:00:34.4]} 33... h4 {[%clk 0:00:39.7]} 34. Nxe5 {[%clk 0:00:31]} 34...
Rg8 {[%clk 0:00:39.8]} 35. Nc6+ {[%clk 0:00:29.6]} 35... Kf8 {[%clk 0:00:40.9]}
36. Rd8+ {[%clk 0:00:23.9]} 36... Ne8 {[%clk 0:00:41.9]} 37. Kf4 {[%clk
0:00:20.9]} 37... Rg3 {[%clk 0:00:42.2]} 38. f6 {[%clk 0:00:21.5]} 38... Rg1
{[%clk 0:00:40.7]} 39. Ne5 {[%clk 0:00:21.4]} 1-0

[Event "*** Titled Tuesday Blitz"]
[Site "Chess.com"]
[Date "2018.01.02"]
[Round "8"]
[White "evgenysharapov"]
[Black "chessdjw"]
[Result "1-0"]
[WhiteElo "2386"]
[BlackElo "2515"]
[TimeControl "180+2"]
[EndTime "14:47:38 PST"]
[Termination "evgenysharapov won by checkmate"]

1. e4 {[%clk 0:02:57.4]} 1... e5 {[%clk 0:03:00]} 2. Nf3 {[%clk 0:02:57.9]} 2...
Nc6 {[%clk 0:03:01.3]} 3. Bb5 {[%clk 0:02:57.9]} 3... a6 {[%clk 0:03:02.3]} 4.
Ba4 {[%clk 0:02:58.5]} 4... Nf6 {[%clk 0:03:03.6]} 5. O-O {[%clk 0:02:58]} 5...
Be7 {[%clk 0:03:04.9]} 6. Re1 {[%clk 0:02:58.3]} 6... b5 {[%clk 0:03:05.6]} 7.
Bb3 {[%clk 0:02:58.6]} 7... d6 {[%clk 0:03:07.5]} 8. c3 {[%clk 0:02:59.1]} 8...
O-O {[%clk 0:03:09.1]} 9. h3 {[%clk 0:02:59.7]} 9... Nb8 {[%clk 0:03:10.4]} 10.
d4 {[%clk 0:03:00.3]} 10... Nbd7 {[%clk 0:03:12]} 11. Bc2 {[%clk 0:02:58.1]}
11... Bb7 {[%clk 0:03:12.9]} 12. b3 {[%clk 0:02:58.8]} 12... Re8 {[%clk
0:03:10.7]} 13. Nbd2 {[%clk 0:02:58]} 13... Bf8 {[%clk 0:03:10.7]} 14. d5 {[%clk
0:02:58.9]} 14... c6 {[%clk 0:03:06.5]} 15. c4 {[%clk 0:02:59.3]} 15... a5
{[%clk 0:03:05.3]} 16. a4 {[%clk 0:02:54.4]} 16... bxc4 {[%clk 0:02:59.1]} 17.
bxc4 {[%clk 0:02:54.2]} 17... Nc5 {[%clk 0:02:58.8]} 18. Ba3 {[%clk 0:02:47.6]}
18... Qc7 {[%clk 0:02:59.6]} 19. Rb1 {[%clk 0:02:39.6]} 19... Rab8 {[%clk
0:02:59.4]} 20. Nf1 {[%clk 0:02:21.4]} 20... Ba6 {[%clk 0:02:59.2]} 21. Bxc5
{[%clk 0:02:17.1]} 21... dxc5 {[%clk 0:03:01.1]} 22. Ne3 {[%clk 0:02:16.4]}
22... Rb4 {[%clk 0:03:01.6]} 23. Rxb4 {[%clk 0:02:09.4]} 23... cxb4 {[%clk
0:02:52.6]} 24. Nd2 {[%clk 0:02:02.3]} 24... cxd5 {[%clk 0:02:52.6]} 25. Nxd5
{[%clk 0:01:54.7]} 25... Nxd5 {[%clk 0:02:52.4]} 26. cxd5 {[%clk 0:01:50.4]}
26... Rc8 {[%clk 0:02:52.6]} 27. Bb3 {[%clk 0:01:49.9]} 27... Qc3 {[%clk
0:02:49.8]} 28. Nf3 {[%clk 0:01:34.7]} 28... Bc5 {[%clk 0:02:46.8]} 29. d6
{[%clk 0:01:29.9]} 29... Bd4 {[%clk 0:01:05.9]} 30. Ng5 {[%clk 0:01:10.1]} 30...
Qg3 {[%clk 0:00:45.8]} 31. Nxf7 {[%clk 0:00:52.4]} 31... Bxf2+ {[%clk
0:00:40.8]} 32. Kh1 {[%clk 0:00:53.2]} 32... Bxe1 {[%clk 0:00:40.5]} 33. d7
{[%clk 0:00:53]} 33... h6 {[%clk 0:00:17.6]} 34. dxc8=Q+ {[%clk 0:00:38.8]}
34... Bxc8 {[%clk 0:00:19.5]} 35. Ng5+ {[%clk 0:00:31.4]} 35... Kf8 {[%clk
0:00:05.4]} 36. Qd8# {[%clk 0:00:29.5]} 1-0

[Event "*** Titled Tuesday Blitz"]
[Site "Chess.com"]
[Date "2018.01.02"]
[Round "8"]
[White "Ginger_GM"]
[Black "TregubovP"]
[Result "1-0"]
[WhiteElo "2479"]
[BlackElo "2497"]
[TimeControl "180+2"]
[EndTime "14:47:51 PST"]
[Termination "Ginger_GM won on time"]

1. d4 {[%clk 0:03:01.9]} 1... Nf6 {[%clk 0:02:59.7]} 2. g4 {[%clk 0:02:55.3]}
2... Nxg4 {[%clk 0:02:52.4]} 3. e4 {[%clk 0:02:54.1]} 3... d5 {[%clk 0:02:50.9]}
4. Be2 {[%clk 0:02:54.1]} 4... h5 {[%clk 0:02:42]} 5. exd5 {[%clk 0:02:48.4]}
5... Qxd5 {[%clk 0:02:36.1]} 6. Nf3 {[%clk 0:02:48.8]} 6... e6 {[%clk
0:02:28.2]} 7. Rg1 {[%clk 0:02:24.8]} 7... b6 {[%clk 0:02:09.6]} 8. h3 {[%clk
0:02:15.3]} 8... Nf6 {[%clk 0:02:05.7]} 9. Nc3 {[%clk 0:02:15.7]} 9... Qd8
{[%clk 0:01:49.3]} 10. Bf4 {[%clk 0:02:01.5]} 10... Bb7 {[%clk 0:01:48]} 11. Qd2
{[%clk 0:01:56.7]} 11... Nc6 {[%clk 0:01:40]} 12. O-O-O {[%clk 0:01:44.2]} 12...
g6 {[%clk 0:01:27.9]} 13. d5 {[%clk 0:01:26.8]} 13... exd5 {[%clk 0:01:22.2]}
14. Nb5 {[%clk 0:01:22.6]} 14... Rc8 {[%clk 0:01:13.9]} 15. Bd3 {[%clk
0:01:18.7]} 15... Be7 {[%clk 0:01:08.2]} 16. Rde1 {[%clk 0:01:15.6]} 16... Ne4
{[%clk 0:01:02.3]} 17. Bxe4 {[%clk 0:00:41.1]} 17... dxe4 {[%clk 0:01:03.2]} 18.
Qc3 {[%clk 0:00:40.9]} 18... O-O {[%clk 0:01:01.9]} 19. Rxe4 {[%clk 0:00:36.3]}
19... Bf6 {[%clk 0:01:02.9]} 20. Qe3 {[%clk 0:00:29.1]} 20... Ne7 {[%clk
0:01:01.6]} 21. Rd1 {[%clk 0:00:22.8]} 21... Nf5 {[%clk 0:00:52.2]} 22. Qe1
{[%clk 0:00:21.3]} 22... Bxe4 {[%clk 0:00:43.8]} 23. Rxd8 {[%clk 0:00:20.6]}
23... Bxf3 {[%clk 0:00:44.8]} 24. Rxc8 {[%clk 0:00:19.6]} 24... Rxc8 {[%clk
0:00:44.2]} 25. Nxc7 {[%clk 0:00:17.9]} 25... Nd4 {[%clk 0:00:40.4]} 26. Qe3
{[%clk 0:00:09.5]} 26... Bb7 {[%clk 0:00:37]} 27. Kb1 {[%clk 0:00:10.4]} 27...
Nf5 {[%clk 0:00:32.9]} 28. Qd2 {[%clk 0:00:11.1]} 28... Rd8 {[%clk 0:00:32.3]}
29. Qe1 {[%clk 0:00:10.6]} 29... Nd4 {[%clk 0:00:27.1]} 30. a3 {[%clk
0:00:09.8]} 30... Nf3 {[%clk 0:00:20]} 31. Qe3 {[%clk 0:00:10.6]} 31... Nd2+
{[%clk 0:00:14.1]} 32. Ka2 {[%clk 0:00:11.7]} 32... Nc4 {[%clk 0:00:14.4]} 33.
Qe2 {[%clk 0:00:12.8]} 33... Nxb2 {[%clk 0:00:12.5]} 34. Be5 {[%clk 0:00:14.1]}
34... Bxe5 {[%clk 0:00:12.3]} 35. Qxe5 {[%clk 0:00:16]} 35... Nc4 {[%clk
0:00:12.6]} 36. Qe7 {[%clk 0:00:16.5]} 36... Rc8 {[%clk 0:00:11.9]} 37. Ne8
{[%clk 0:00:15.7]} 37... Nd2 {[%clk 0:00:07.9]} 38. Kb2 {[%clk 0:00:12.4]} 38...
Bc6 {[%clk 0:00:03]} 39. Nd6 {[%clk 0:00:12.3]} 39... Rf8 {[%clk 0:00:03.3]} 40.
Qe3 {[%clk 0:00:13.2]} 1-0

[Event "*** Titled Tuesday Blitz"]
[Site "Chess.com"]
[Date "2018.01.02"]
[Round "8"]
[White "ChEsper99"]
[Black "Kimster98"]
[Result "0-1"]
[WhiteElo "1993"]
[BlackElo "2470"]
[TimeControl "180+2"]
[EndTime "14:47:54 PST"]
[Termination "Kimster98 won on time"]

1. e4 {[%clk 0:03:01.9]} 1... e5 {[%clk 0:03:00.2]} 2. Nf3 {[%clk 0:03:02.9]}
2... Nc6 {[%clk 0:03:01.5]} 3. d4 {[%clk 0:03:03.6]} 3... exd4 {[%clk
0:02:59.7]} 4. Nxd4 {[%clk 0:03:05.5]} 4... Nf6 {[%clk 0:03:01.1]} 5. Nxc6
{[%clk 0:03:06.1]} 5... bxc6 {[%clk 0:03:03]} 6. Qe2 {[%clk 0:03:07.9]} 6... d5
{[%clk 0:03:00.7]} 7. exd5+ {[%clk 0:03:07.7]} 7... Be7 {[%clk 0:03:02.2]} 8.
dxc6 {[%clk 0:03:07.1]} 8... O-O {[%clk 0:03:03.7]} 9. Nc3 {[%clk 0:02:56.4]}
9... Re8 {[%clk 0:02:59.7]} 10. Be3 {[%clk 0:02:49.6]} 10... Bc5 {[%clk
0:02:44.2]} 11. Qd2 {[%clk 0:01:58.1]} 11... Bxe3 {[%clk 0:02:17.8]} 12. Qxd8
{[%clk 0:01:46.6]} 12... Bxf2+ {[%clk 0:02:11.8]} 13. Kxf2 {[%clk 0:01:41.5]}
13... Rxd8 {[%clk 0:02:13]} 14. Be2 {[%clk 0:01:22.1]} 14... Bf5 {[%clk
0:02:12.4]} 15. Rac1 {[%clk 0:00:20.7]} 15... Ne4+ {[%clk 0:00:49.9]} 16. Nxe4
{[%clk 0:00:21]} 16... Bxe4 {[%clk 0:00:51.8]} 17. Rhd1 {[%clk 0:00:18.3]} 17...
Bxc6 {[%clk 0:00:51.2]} 18. Rxd8+ {[%clk 0:00:17.6]} 18... Rxd8 {[%clk
0:00:53.1]} 19. Rd1 {[%clk 0:00:16.5]} 19... Rxd1 {[%clk 0:00:54.3]} 20. Bxd1
{[%clk 0:00:18.4]} 20... Kf8 {[%clk 0:00:56]} 21. g3 {[%clk 0:00:18.1]} 21...
Ke7 {[%clk 0:00:57.1]} 22. Ke3 {[%clk 0:00:19.1]} 22... Kd6 {[%clk 0:00:57.6]}
23. Be2 {[%clk 0:00:19.6]} 23... Bd7 {[%clk 0:00:55.2]} 24. Kd4 {[%clk
0:00:20.7]} 24... c5+ {[%clk 0:00:55.8]} 25. Ke3 {[%clk 0:00:20.8]} 25... g5
{[%clk 0:00:53.8]} 26. c3 {[%clk 0:00:21.4]} 26... Ke5 {[%clk 0:00:49.5]} 27.
Bd3 {[%clk 0:00:22.3]} 27... f5 {[%clk 0:00:50.1]} 28. b4 {[%clk 0:00:23]} 28...
f4+ {[%clk 0:00:51]} 29. gxf4+ {[%clk 0:00:19.7]} 29... gxf4+ {[%clk 0:00:52.8]}
30. Kf2 {[%clk 0:00:20.1]} 30... cxb4 {[%clk 0:00:50.1]} 31. cxb4 {[%clk
0:00:22]} 31... h6 {[%clk 0:00:51.8]} 32. Bh7 {[%clk 0:00:16.7]} 32... Bc6
{[%clk 0:00:50.4]} 33. Bg8 {[%clk 0:00:16.7]} 33... Kd4 {[%clk 0:00:50.2]} 34.
a3 {[%clk 0:00:07.8]} 34... Kc3 {[%clk 0:00:46.9]} 35. h4 {[%clk 0:00:04.5]}
35... Kb2 {[%clk 0:00:45]} 36. Bc4 {[%clk 0:00:05.3]} 36... Kxa3 {[%clk
0:00:45.5]} 37. b5 {[%clk 0:00:06.3]} 37... Be4 {[%clk 0:00:46.8]} 38. Be6
{[%clk 0:00:03.3]} 38... Kb4 {[%clk 0:00:47.9]} 39. Bd7 {[%clk 0:00:04.3]} 39...
Kc5 {[%clk 0:00:49.3]} 40. Be8 {[%clk 0:00:05.1]} 40... Bd5 {[%clk 0:00:49]} 41.
Bd7 {[%clk 0:00:04.4]} 41... Be4 {[%clk 0:00:50]} 42. Be8 {[%clk 0:00:05.5]}
42... Kd4 {[%clk 0:00:46.5]} 43. Bd7 {[%clk 0:00:06]} 43... Ke5 {[%clk 0:00:48]}
44. Be8 {[%clk 0:00:07.1]} 44... Bb7 {[%clk 0:00:46.9]} 45. Kg1 {[%clk
0:00:03.8]} 45... Kf5 {[%clk 0:00:47]} 46. Kh2 {[%clk 0:00:05.2]} 46... Kg4
{[%clk 0:00:47.9]} 47. Bc6 {[%clk 0:00:05.6]} 47... Bc8 {[%clk 0:00:48.1]} 0-1

[Event "*** Titled Tuesday Blitz"]
[Site "Chess.com"]
[Date "2018.01.02"]
[Round "8"]
[White "CookiesAndIceCream"]
[Black "Hanging_pointer"]
[Result "0-1"]
[WhiteElo "2103"]
[BlackElo "2250"]
[TimeControl "180+2"]
[EndTime "14:48:10 PST"]
[Termination "Hanging_pointer won by checkmate"]

1. e4 {[%clk 0:03:01.9]} 1... c5 {[%clk 0:02:59.8]} 2. Nf3 {[%clk 0:03:03.1]}
2... e6 {[%clk 0:02:58.1]} 3. d4 {[%clk 0:03:04.3]} 3... cxd4 {[%clk 0:03:00]}
4. Nxd4 {[%clk 0:03:05.2]} 4... Nc6 {[%clk 0:03:01.4]} 5. Nc3 {[%clk 0:03:06.3]}
5... Qc7 {[%clk 0:03:02.7]} 6. Be3 {[%clk 0:03:07]} 6... a6 {[%clk 0:03:02.8]}
7. Qf3 {[%clk 0:03:08.4]} 7... d6 {[%clk 0:03:01.3]} 8. Qg3 {[%clk 0:02:59.7]}
8... Bd7 {[%clk 0:02:58.4]} 9. O-O-O {[%clk 0:03:00]} 9... Rc8 {[%clk
0:02:57.7]} 10. Kb1 {[%clk 0:02:51.4]} 10... b5 {[%clk 0:02:58.5]} 11. Nxc6
{[%clk 0:02:44.1]} 11... Bxc6 {[%clk 0:02:59.1]} 12. Bd3 {[%clk 0:02:44.8]}
12... Nf6 {[%clk 0:02:54.4]} 13. f4 {[%clk 0:02:41.6]} 13... b4 {[%clk
0:02:54.7]} 14. Ne2 {[%clk 0:02:41.6]} 14... Nxe4 {[%clk 0:02:53.6]} 15. Qh3
{[%clk 0:02:34.9]} 15... Be7 {[%clk 0:02:22.9]} 16. f5 {[%clk 0:02:29.3]} 16...
e5 {[%clk 0:01:58.8]} 17. Qg4 {[%clk 0:02:16.2]} 17... h5 {[%clk 0:01:49.3]} 18.
Qh3 {[%clk 0:01:53.9]} 18... Nf6 {[%clk 0:01:45.5]} 19. Bg5 {[%clk 0:01:44.4]}
19... d5 {[%clk 0:01:19.1]} 20. Rhe1 {[%clk 0:00:57]} 20... e4 {[%clk
0:01:15.7]} 21. Nd4 {[%clk 0:00:58]} 21... exd3 {[%clk 0:01:04.4]} 22. Rxd3
{[%clk 0:00:58.8]} 22... Kf8 {[%clk 0:01:00.4]} 23. Rde3 {[%clk 0:00:49.2]}
23... Bc5 {[%clk 0:01:00.9]} 24. Bxf6 {[%clk 0:00:45.7]} 24... gxf6 {[%clk
0:01:00.3]} 25. Qh4 {[%clk 0:00:46]} 25... Bxd4 {[%clk 0:00:48.7]} 26. Qxd4
{[%clk 0:00:45.8]} 26... Rh6 {[%clk 0:00:39.4]} 27. Qxb4+ {[%clk 0:00:44.8]}
27... Kg7 {[%clk 0:00:38.3]} 28. Re7 {[%clk 0:00:39.5]} 28... Bd7 {[%clk
0:00:31.5]} 29. c3 {[%clk 0:00:32.9]} 29... Bxf5+ {[%clk 0:00:31]} 30. Ka1
{[%clk 0:00:25.7]} 30... Qc5 {[%clk 0:00:30.6]} 31. Qf4 {[%clk 0:00:21.8]} 31...
Bg6 {[%clk 0:00:30]} 32. Rd7 {[%clk 0:00:17.1]} 32... h4 {[%clk 0:00:25.8]} 33.
Rd6 {[%clk 0:00:13.2]} 33... f5 {[%clk 0:00:16.5]} 34. Qe5+ {[%clk 0:00:11.7]}
34... Kh7 {[%clk 0:00:17.8]} 35. Qf6 {[%clk 0:00:12.4]} 35... Qf2 {[%clk
0:00:13.1]} 36. Rc1 {[%clk 0:00:07.6]} 36... Rb8 {[%clk 0:00:13.5]} 37. Rb1
{[%clk 0:00:07.7]} 37... Qxg2 {[%clk 0:00:10.4]} 38. Rd7 {[%clk 0:00:08.9]}
38... Rf8 {[%clk 0:00:10.4]} 39. Qd6 {[%clk 0:00:09.8]} 39... Kg8 {[%clk
0:00:09.9]} 40. Rd8 {[%clk 0:00:09.6]} 40... Rxd8 {[%clk 0:00:09.3]} 41. Qxd8+
{[%clk 0:00:11.5]} 41... Kh7 {[%clk 0:00:11]} 42. Re1 {[%clk 0:00:12.5]} 42...
f4 {[%clk 0:00:09.4]} 43. a3 {[%clk 0:00:10.9]} 43... Qc2 {[%clk 0:00:09.4]} 44.
Qf6 {[%clk 0:00:11.1]} 44... Rh5 {[%clk 0:00:07.7]} 45. Re8 {[%clk 0:00:11.8]}
45... Qb1# {[%clk 0:00:08.3]} 0-1

[Event "*** Titled Tuesday Blitz"]
[Site "Chess.com"]
[Date "2018.01.02"]
[Round "8"]
[White "kleinebeer98"]
[Black "ckgchess"]
[Result "0-1"]
[WhiteElo "2499"]
[BlackElo "2484"]
[TimeControl "180+2"]
[EndTime "14:48:20 PST"]
[Termination "ckgchess won on time"]

1. e4 {[%clk 0:03:00.9]} 1... c5 {[%clk 0:03:00.8]} 2. Nf3 {[%clk 0:03:01.1]}
2... d6 {[%clk 0:02:59.7]} 3. d4 {[%clk 0:03:00.2]} 3... cxd4 {[%clk 0:03:01.6]}
4. Nxd4 {[%clk 0:03:02.1]} 4... Nf6 {[%clk 0:03:03]} 5. Nc3 {[%clk 0:02:57.1]}
5... a6 {[%clk 0:03:04.1]} 6. Bc4 {[%clk 0:02:53.5]} 6... e6 {[%clk 0:03:04.6]}
7. Be3 {[%clk 0:02:37.6]} 7... Be7 {[%clk 0:03:04.7]} 8. O-O {[%clk 0:02:34.6]}
8... O-O {[%clk 0:02:53.4]} 9. a4 {[%clk 0:02:25.8]} 9... Nbd7 {[%clk
0:02:44.1]} 10. Ba2 {[%clk 0:02:21.4]} 10... Nc5 {[%clk 0:02:42.1]} 11. Qf3
{[%clk 0:02:14.8]} 11... Qc7 {[%clk 0:02:25.8]} 12. g4 {[%clk 0:01:43]} 12... b6
{[%clk 0:02:17.2]} 13. g5 {[%clk 0:01:40.4]} 13... Nfd7 {[%clk 0:02:18.2]} 14.
Qg2 {[%clk 0:01:31.9]} 14... Ne5 {[%clk 0:01:43.2]} 15. f4 {[%clk 0:01:23.4]}
15... Nc6 {[%clk 0:01:31.9]} 16. f5 {[%clk 0:01:12.1]} 16... Nxd4 {[%clk
0:01:14.4]} 17. Bxd4 {[%clk 0:01:12.9]} 17... g6 {[%clk 0:00:32.8]} 18. Rf3
{[%clk 0:00:55.4]} 18... Bb7 {[%clk 0:00:28.6]} 19. f6 {[%clk 0:00:43.5]} 19...
Bd8 {[%clk 0:00:23.2]} 20. Qh3 {[%clk 0:00:41.7]} 20... h5 {[%clk 0:00:24.8]}
21. gxh6 {[%clk 0:00:39.7]} 21... Kh7 {[%clk 0:00:26]} 22. Re1 {[%clk
0:00:34.9]} 22... Nd7 {[%clk 0:00:16.5]} 23. Ref1 {[%clk 0:00:22.1]} 23... Ne5
{[%clk 0:00:16.7]} 24. Rg3 {[%clk 0:00:20.7]} 24... Nc6 {[%clk 0:00:14.4]} 25.
Be3 {[%clk 0:00:19.6]} 25... b5 {[%clk 0:00:10.5]} 26. Qg2 {[%clk 0:00:08.4]}
26... b4 {[%clk 0:00:10.2]} 27. Ne2 {[%clk 0:00:06.9]} 27... Ne5 {[%clk
0:00:11.7]} 28. Nd4 {[%clk 0:00:06.9]} 28... Qd7 {[%clk 0:00:11.9]} 29. Bf4
{[%clk 0:00:07]} 29... Bb6 {[%clk 0:00:13.1]} 30. Be3 {[%clk 0:00:05]} 30...
Rac8 {[%clk 0:00:13.1]} 31. Kh1 {[%clk 0:00:04.5]} 31... Bxd4 {[%clk 0:00:11.8]}
32. Bxd4 {[%clk 0:00:06.4]} 32... Qc6 {[%clk 0:00:13.3]} 33. Bxe5 {[%clk
0:00:03.8]} 33... dxe5 {[%clk 0:00:14.7]} 34. Re3 {[%clk 0:00:02.8]} 34... Qxc2
{[%clk 0:00:15.4]} 35. Re2 {[%clk 0:00:04.7]} 35... Qxa4 {[%clk 0:00:15.3]} 36.
Bxe6 {[%clk 0:00:05.7]} 36... fxe6 {[%clk 0:00:14.4]} 37. Rg1 {[%clk 0:00:04.8]}
37... Qe8 {[%clk 0:00:12.5]} 38. f7 {[%clk 0:00:03.4]} 38... Qxf7 {[%clk
0:00:13.5]} 39. Rf2 {[%clk 0:00:05]} 39... Qg8 {[%clk 0:00:12.7]} 40. Rd2 {[%clk
0:00:06.9]} 40... Rcd8 {[%clk 0:00:12.1]} 41. Rc2 {[%clk 0:00:07]} 41... Rc8
{[%clk 0:00:13.6]} 42. Rd2 {[%clk 0:00:06.4]} 42... Rcd8 {[%clk 0:00:15.1]} 43.
Rc2 {[%clk 0:00:07.4]} 43... Rd7 {[%clk 0:00:16.7]} 44. Re2 {[%clk 0:00:02.8]}
44... Rf4 {[%clk 0:00:17.5]} 45. Qg5 {[%clk 0:00:02.8]} 45... Rxe4 {[%clk
0:00:16.4]} 0-1

[Event "*** Titled Tuesday Blitz"]
[Site "Chess.com"]
[Date "2018.01.02"]
[Round "8"]
[White "jbj"]
[Black "windking123"]
[Result "1-0"]
[WhiteElo "2324"]
[BlackElo "2418"]
[TimeControl "180+2"]
[EndTime "14:48:29 PST"]
[Termination "jbj won by checkmate"]

1. e4 {[%clk 0:03:01.9]} 1... c5 {[%clk 0:03:00.6]} 2. d4 {[%clk 0:03:02.8]}
2... cxd4 {[%clk 0:03:02.5]} 3. c3 {[%clk 0:03:04]} 3... dxc3 {[%clk 0:03:04]}
4. Nxc3 {[%clk 0:03:05.6]} 4... Nc6 {[%clk 0:03:05.5]} 5. Nf3 {[%clk 0:03:06.5]}
5... e6 {[%clk 0:03:07]} 6. Bc4 {[%clk 0:03:07.3]} 6... a6 {[%clk 0:03:08.1]} 7.
O-O {[%clk 0:03:08.4]} 7... Qc7 {[%clk 0:03:09.3]} 8. Bb3 {[%clk 0:03:02.7]}
8... d6 {[%clk 0:03:05.5]} 9. Bf4 {[%clk 0:03:01.7]} 9... Ne5 {[%clk 0:03:05.1]}
10. Rc1 {[%clk 0:03:01.3]} 10... Qb8 {[%clk 0:03:05.5]} 11. Na4 {[%clk
0:02:26.8]} 11... b5 {[%clk 0:03:04.2]} 12. Nc5 {[%clk 0:02:24.3]} 12... Nf6
{[%clk 0:02:43.6]} 13. Nd3 {[%clk 0:02:09.1]} 13... Nxf3+ {[%clk 0:02:15.4]} 14.
Qxf3 {[%clk 0:02:11]} 14... Be7 {[%clk 0:02:15.9]} 15. e5 {[%clk 0:02:09.9]}
15... dxe5 {[%clk 0:02:04.4]} 16. Nxe5 {[%clk 0:02:10]} 16... Qb7 {[%clk
0:01:57.9]} 17. Rxc8+ {[%clk 0:01:53.1]} 17... Qxc8 {[%clk 0:01:54.2]} 18. Rc1
{[%clk 0:01:53.5]} 18... Qd8 {[%clk 0:00:50.1]} 19. Nc6 {[%clk 0:01:54]} 19...
Qd7 {[%clk 0:00:31.5]} 20. Nxe7 {[%clk 0:01:54.7]} 20... Kxe7 {[%clk 0:00:33.4]}
21. Rc7 {[%clk 0:01:54.2]} 21... Qxc7 {[%clk 0:00:31.5]} 22. Bxc7 {[%clk
0:01:55.1]} 22... Rhc8 {[%clk 0:00:32.5]} 23. Qb7 {[%clk 0:01:53.5]} 23... Ke8
{[%clk 0:00:32.3]} 24. h3 {[%clk 0:01:51.5]} 24... Nd7 {[%clk 0:00:32]} 25. Bd6
{[%clk 0:01:45.9]} 25... Rc1+ {[%clk 0:00:31.7]} 26. Kh2 {[%clk 0:01:46.6]}
26... Rac8 {[%clk 0:00:33.1]} 27. a4 {[%clk 0:01:46.1]} 27... R8c6 {[%clk
0:00:26.9]} 28. Qa8+ {[%clk 0:01:45]} 28... Rc8 {[%clk 0:00:27.9]} 29. Qe4
{[%clk 0:01:39.2]} 29... R1c6 {[%clk 0:00:25]} 30. Ba3 {[%clk 0:01:29.4]} 30...
Nc5 {[%clk 0:00:25]} 31. Bxc5 {[%clk 0:01:29.6]} 31... Rxc5 {[%clk 0:00:26.9]}
32. Qxh7 {[%clk 0:01:29.2]} 32... g6 {[%clk 0:00:26.7]} 33. axb5 {[%clk
0:01:26.1]} 33... axb5 {[%clk 0:00:28.6]} 34. Qg8+ {[%clk 0:01:18]} 34... Ke7
{[%clk 0:00:29.6]} 35. Qg7 {[%clk 0:01:18.7]} 35... Rf5 {[%clk 0:00:28]} 36. Qd4
{[%clk 0:01:16.6]} 36... Rd8 {[%clk 0:00:28.7]} 37. Qe3 {[%clk 0:01:15.4]} 37...
Rd7 {[%clk 0:00:25.4]} 38. g4 {[%clk 0:01:14.5]} 38... Rf6 {[%clk 0:00:24.5]}
39. Qg5 {[%clk 0:01:11.5]} 39... Rd4 {[%clk 0:00:20.9]} 40. Kg3 {[%clk
0:01:08.2]} 40... Rd3+ {[%clk 0:00:20.2]} 41. Kg2 {[%clk 0:01:06.3]} 41... Rxb3
{[%clk 0:00:21]} 42. Qc5+ {[%clk 0:00:56.2]} 42... Ke8 {[%clk 0:00:22.3]} 43.
Qc8+ {[%clk 0:00:53.8]} 43... Ke7 {[%clk 0:00:23.2]} 44. Qc7+ {[%clk 0:00:54.7]}
44... Ke8 {[%clk 0:00:24.4]} 45. Qb8+ {[%clk 0:00:46.1]} 45... Ke7 {[%clk
0:00:24.9]} 46. Qa7+ {[%clk 0:00:41.8]} 46... Kf8 {[%clk 0:00:21.5]} 47. Qd4
{[%clk 0:00:41.8]} 47... Rff3 {[%clk 0:00:21.4]} 48. h4 {[%clk 0:00:41.4]} 48...
Rfd3 {[%clk 0:00:20.9]} 49. Qh8+ {[%clk 0:00:39.6]} 49... Ke7 {[%clk 0:00:22.3]}
50. h5 {[%clk 0:00:39.4]} 50... Rh3 {[%clk 0:00:22.6]} 51. Qe5 {[%clk
0:00:34.2]} 51... gxh5 {[%clk 0:00:21.8]} 52. gxh5 {[%clk 0:00:35.1]} 52... Kf8
{[%clk 0:00:21.5]} 53. Qg5 {[%clk 0:00:31.8]} 53... Rhf3 {[%clk 0:00:17.5]} 54.
h6 {[%clk 0:00:31.2]} 54... Rf5 {[%clk 0:00:17]} 55. Qd8# {[%clk 0:00:31.8]} 1-0